bitfinex/quotes_SOLUSD_20251216
["timestamp","ask_amount","ask_price","bid_price","bid_amount"]
[1765896086008,8.07259233,128.83,128.8,0.68]
[1765896086333,8.07259233,128.83,128.79,0.68]
[1765896086523,35.64394672,128.85,128.79,8.44433356]
[1765896086820,8.07259233,128.82,128.78,7.76512141]
[1765896086998,8.07259233,128.82,128.79,0.68]
[1765896087499,48.69103792,128.85,128.79,8.44451517]
[1765896087698,7.76163151,128.84,128.8,0.68]
[1765896087898,15.83422384,128.84,128.8,0.68]
[1765896089495,42.40167108,128.85,128.81,0.68]
[1765896090005,42.40167108,128.85,128.81,8.44322682]
[1765896090205,42.40167108,128.85,128.82,0.68]
[1765896090536,13.11337826,128.91,128.85,0.68]
[1765896090744,7.75494377,128.95,128.88,13.11337826]
[1765896090902,7.75494377,128.95,128.9,0.68]
[1765896090903,13.11337826,128.94,128.9,0.68]
[1765896091231,13.11337826,128.93,128.9,0.68]
[1765896091532,27.14290863,128.95,128.86,13.11337826]
[1765896091533,8.64,128.94,128.86,13.11337826]
[1765896091703,8.64,128.94,128.87,0.68]
[1765896091704,7.7579519,128.9,128.87,0.68]
[1765896091898,7.7579519,128.9,128.83,19.40419147]
[1765896091899,13.11337826,128.88,128.83,7.76176605]
[1765896092128,13.11337826,128.88,128.85,0.68]
[1765896094144,13.11337826,128.88,128.84,0.71]
[1765896095010,8.48,128.9,128.84,0.71]
[1765896095210,13.11337826,128.9,128.85,13.11337826]
[1765896095437,13.11337826,128.9,128.86,0.7]
[1765896095752,13.11337826,128.88,128.84,0.7]
[1765896095902,48.8378165,128.91,128.84,0.7]
[1765896096106,13.11337826,128.86,128.82,0.7]
[1765896096636,8.48,128.88,128.82,0.7]
[1765896096637,13.11337826,128.85,128.82,0.7]
[1765896097415,13.11337826,128.84,128.81,0.7]
[1765896097614,21.6870912,128.88,128.81,8.46313346]
[1765896097814,20.87475053,128.85,128.82,0.7]
[1765896098610,7.76053493,128.86,128.83,0.7]
[1765896098854,13.11337826,128.84,128.79,21.92332318]
[1765896099013,13.11337826,128.83,128.8,0.7]
[1765896099727,8.48,128.84,128.8,0.7]
[1765896099914,21.59337826,128.84,128.8,0.7]
[1765896100112,8.48,128.84,128.81,0.7]
[1765896100444,8.48,128.86,128.81,0.7]
[1765896100634,13.0470912,128.9,128.84,0.7]
[1765896100949,20.87213518,128.89,128.85,0.7]
[1765896101335,13.11337826,128.9,128.86,0.7]
[1765896101537,13.11337826,128.89,128.87,0.7]
[1765896101742,27.15108475,128.91,128.83,21.92332318]
[1765896102053,13.11337826,128.86,128.82,7.76276975]
[1765896102257,13.11337826,128.86,128.83,0.7]
[1765896102415,27.1570453,128.88,128.83,0.7]
[1765896102615,13.11337826,128.85,128.83,0.7]
[1765896103152,13.11337826,128.85,128.81,0.7]
[1765896103651,21.59337826,128.86,128.82,0.7]
[1765896104016,29.35429771,128.86,128.82,0.7]
[1765896104222,29.35429771,128.86,128.83,0.7]
[1765896104427,16.24091945,128.86,128.83,0.7]
[1765896104630,13.11337826,128.85,128.83,0.7]
[1765896105231,48.75519791,128.86,128.83,0.7]
[1765896105523,16.24091945,128.86,128.83,0.7]
[1765896105723,20.87429771,128.86,128.83,0.7]
[1765896106146,7.76091945,128.86,128.83,0.7]
[1765896106858,7.76091945,128.86,128.84,0.7]
[1765896107038,20.87429771,128.86,128.84,0.7]
[1765896107953,7.76091945,128.86,128.84,0.7]
[1765896108242,20.87313615,128.87,128.83,0.7]
[1765896108622,7.75975789,128.87,128.83,13.11337826]
[1765896108819,20.87269089,128.88,128.84,0.7]
[1765896109146,13.11337826,128.85,128.81,0.7]
[1765896109453,8.48,128.87,128.81,0.7]
[1765896109625,13.11337826,128.83,128.8,7.76382875]
[1765896109827,0.16,128.86,128.79,0.7]
[1765896110151,13.11337826,128.84,128.8,0.7]
[1765896110361,27.16126028,128.86,128.8,0.7]
[1765896110657,13.11337826,128.82,128.78,16.24504122]
[1765896110828,13.11337826,128.81,128.79,0.7]
[1765896111730,13.11337826,128.8,128.77,0.7]
[1765896112353,20.87759564,128.8,128.77,0.7]
[1765896112552,20.87759564,128.8,128.74,32.46527875]
[1765896112553,13.11337826,128.78,128.74,0.7]
[1765896112738,13.11337826,128.78,128.75,0.7]
[1765896113551,13.11337826,128.79,128.76,0.7]
[1765896114456,7.76518092,128.78,128.76,0.7]
[1765896114658,20.87855918,128.78,128.76,0.7]
[1765896115354,7.76518092,128.78,128.76,0.7]
[1765896115526,20.87855918,128.78,128.76,0.7]
[1765896115728,13.11337826,128.77,128.73,16.94805506]
[1765896115930,13.11337826,128.76,128.73,0.7]
[1765896116130,13.11337826,128.75,128.71,0.7]
[1765896116358,13.11337826,128.74,128.71,0.7]
[1765896116550,20.88121277,128.74,128.71,0.7]
[1765896116925,13.11337826,128.73,128.71,0.7]
[1765896117369,27.3468185,128.74,128.69,0.7]
[1765896117530,13.11337826,128.72,128.69,0.7]
[1765896117955,13.11337826,128.72,128.69,7.77055967]
[1765896118253,13.11337826,128.72,128.7,0.7]
[1765896118458,13.11337826,128.72,128.68,7.77099681]
[1765896118459,13.11337826,128.72,128.69,0.7]
[1765896118634,20.8822246,128.72,128.69,0.7]
[1765896119334,29.3622246,128.72,128.69,0.7]
[1765896119765,13.11337826,128.7,128.67,0.7]
[1765896120057,13.11337826,128.69,128.66,0.7]
[1765896120359,13.11337826,128.69,128.63,27.91463251]
[1765896120360,16.24884634,128.72,128.68,0.7]
[1765896120659,20.8822246,128.72,128.68,0.7]
[1765896120868,13.11337826,128.69,128.66,0.7]
[1765896121040,20.8822246,128.72,128.67,0.7]
[1765896121235,20.8822246,128.72,128.68,7.77119025]
[1765896121452,16.24841187,128.73,128.69,0.7]
[1765896121633,13.11337826,128.72,128.69,0.7]
[1765896122035,7.76785594,128.74,128.69,0.7]
[1765896122256,13.0470912,128.75,128.7,0.7]
[1765896122257,13.11337826,128.75,128.7,0.7]
[1765896122460,13.11337826,128.76,128.72,0.7]
[1765896122634,13.11337826,128.77,128.74,0.7]
[1765896122836,20.87874114,128.78,128.74,0.7]
[1765896123140,0.16,128.74,128.68,0.7]
[1765896123461,7.76536288,128.78,128.73,0.7]
[1765896123766,29.35814232,128.79,128.75,0.7]
[1765896123936,13.11337826,128.78,128.75,0.7]
[1765896124133,48.9295873,128.79,128.71,13.7470912]
[1765896124353,27.17620904,128.79,128.71,13.81337826]
[1765896124554,13.11337826,128.77,128.72,29.69179387]
[1765896124954,20.87931593,128.77,128.72,36.00041685]
[1765896125334,13.11337826,128.77,128.73,0.7]
[1765896125932,16.24529839,128.78,128.71,0.7]
[1765896125933,13.11337826,128.74,128.71,0.7]
[1765896126163,35.81825071,128.78,128.71,0.7]
[1765896126164,13.11337826,128.73,128.71,0.7]
[1765896126461,13.11337826,128.73,128.7,0.7]
[1765896126665,8.48,128.75,128.7,0.7]
[1765896126871,29.36057603,128.75,128.71,7.76892772]
[1765896127180,29.36058338,128.75,128.72,0.7]
[1765896127468,8.48,128.75,128.72,0.7]
[1765896127670,13.11337826,128.76,128.72,0.7]
[1765896127899,8.48,128.77,128.73,0.7]
[1765896128052,29.35936028,128.77,128.73,0.7]
[1765896128951,21.59337826,128.77,128.74,0.7]
[1765896129156,110.26467299,128.79,128.74,0.7]
[1765896129360,13.12472254,128.78,128.74,0.7]
[1765896129772,13.12472254,128.77,128.74,0.7]
[1765896129972,13.12472254,128.78,128.74,0.7]
[1765896130159,8.48,128.79,128.75,0.7]
[1765896130477,29.36887619,128.8,128.75,0.7]
[1765896130965,13.12472254,128.79,128.76,0.7]
[1765896131558,35.65409153,128.8,128.71,47.65520603]
[1765896131559,13.12472254,128.77,128.74,0.7]
[1765896132256,13.12472254,128.76,128.72,7.76858872]
[1765896132464,13.12472254,128.76,128.73,0.7]
[1765896132776,13.12472254,128.77,128.74,0.7]
[1765896133483,13.12472254,128.75,128.72,0.7]
[1765896133651,13.12472254,128.76,128.72,0.7]
[1765896133853,13.12472254,128.76,128.74,0.7]
[1765896134057,27.17409153,128.8,128.75,0.7]
[1765896134252,27.17409153,128.8,128.71,45.59428106]
[1765896134253,13.12472254,128.76,128.73,7.76799672]
[1765896134561,13.12472254,128.76,128.73,8.46799672]
[1765896134764,13.12472254,128.76,128.74,0.7]
[1765896135152,16.24481641,128.79,128.75,0.7]
[1765896135379,13.12472254,128.79,128.75,0.7]
[1765896135599,13.12472254,128.78,128.75,0.7]
[1765896135891,13.12472254,128.77,128.75,0.7]
[1765896136070,13.12472254,128.78,128.75,0.7]
[1765896136985,13.12472254,128.77,128.75,0.7]
[1765896137278,20.88991314,128.78,128.75,0.7]
[1765896137782,13.12472254,128.78,128.75,7.76680655]
[1765896138081,38.77932339,128.94,128.75,7.76680655]
[1765896138082,13.12472254,128.84,128.8,0.7]
[1765896138282,8.48,128.87,128.8,0.7]
[1765896138283,13.12472254,128.83,128.8,0.7]
[1765896138472,13.12472254,128.81,128.78,0.7]
[1765896138785,13.12472254,128.8,128.78,0.7]
[1765896138996,20.88823067,128.81,128.78,0.7]
[1765896139287,7.76350813,128.81,128.78,0.7]
[1765896139466,7.76350813,128.81,128.77,0.7]
[1765896139467,13.12472254,128.79,128.77,0.7]
[1765896139668,13.12472254,128.79,128.75,8.46671955]
[1765896139978,13.12472254,128.79,128.76,0.7]
[1765896140487,13.12472254,128.78,128.76,0.7]
[1765896141061,13.12472254,128.78,128.75,0.7]
[1765896141062,20.89016655,128.78,128.75,0.7]
[1765896141382,13.12472254,128.77,128.73,0.7]
[1765896141583,35.65839633,128.78,128.74,0.7]
[1765896141762,13.12472254,128.77,128.73,0.7]
[1765896142596,35.65839633,128.78,128.73,0.7]
[1765896142776,13.12472254,128.75,128.71,16.96897661]
[1765896142990,13.12472254,128.75,128.72,0.7]
[1765896143291,20.89185727,128.75,128.72,0.7]
[1765896144008,7.76713473,128.75,128.72,13.82472254]
[1765896144698,7.76713473,128.75,128.71,16.26897661]
[1765896145000,7.76713473,128.75,128.69,20.12553104]
[1765896145001,0.16,128.74,128.7,13.12472254]
[1765896145301,48.94933299,128.75,128.7,13.82472254]
[1765896145638,7.76713473,128.75,128.71,13.82472254]
[1765896145788,16.24713473,128.75,128.71,13.12472254]
[1765896146092,13.12472254,128.75,128.7,8.46996133]
[1765896146298,0.16,128.75,128.7,0.7]
[1765896146601,13.12472254,128.72,128.68,0.7]
[1765896146904,0.16,128.71,128.66,13.82472254]
[1765896147071,13.12472254,128.71,128.66,21.59711405]
[1765896147265,13.12472254,128.71,128.66,13.82472254]
[1765896147471,7.77000777,128.7,128.66,13.82472254]
[1765896147694,7.77000777,128.7,128.6,61.78657853]
[1765896147695,13.12472254,128.68,128.64,8.47340923]
[1765896147874,13.12472254,128.68,128.6,0.7]
[1765896147875,13.12472254,128.66,128.6,0.7]
[1765896148076,13.12472254,128.62,128.57,13.82472254]
[1765896148384,8.48,128.62,128.59,0.9]
[1765896148599,8.48,128.62,128.59,0.2]
[1765896148816,8.48,128.62,128.59,0.9]
[1765896149117,21.60472254,128.63,128.59,0.9]
[1765896149321,21.60472254,128.63,128.59,0.2]
[1765896149495,20.89840392,128.64,128.6,0.7]
[1765896149684,8.48,128.63,128.6,0.7]
[1765896149883,8.48,128.63,128.59,21.1012074]
[1765896150095,13.0470912,128.65,128.61,0.7]
[1765896150297,8.48,128.64,128.61,0.7]
[1765896150523,8.48,128.64,128.61,13.82472254]
[1765896151010,8.48,128.64,128.61,0.7]
[1765896151207,8.48,128.64,128.62,0.7]
[1765896151613,16.27259205,128.66,128.63,0.7]
[1765896151817,16.27259205,128.66,128.61,0.7]
[1765896151999,24.3660021,128.66,128.6,7.7759615]
[1765896152190,8.09341005,128.65,128.59,8.67644897]
[1765896152391,8.09341005,128.64,128.59,8.99341005]
[1765896152713,8.5,128.63,128.59,0.9]
[1765896152916,16.59341005,128.63,128.59,0.9]
[1765896153142,8.09341005,128.62,128.59,0.2]
[1765896153595,15.86885519,128.61,128.59,0.2]
[1765896153799,8.5,128.6,128.59,0.2]
[1765896154190,16.59341005,128.6,128.59,0.2]
[1765896154389,25.56335497,128.6,128.59,0.2]
[1765896154593,8.5,128.6,128.59,0.2]
[1765896155392,24.36945981,128.6,128.59,0.2]
[1765896155587,19.59825862,128.62,128.59,0.2]
[1765896155588,16.27560753,128.61,128.59,0.2]
[1765896156200,8.09341005,128.64,128.6,0.69]
[1765896156391,24.36788495,128.63,128.59,0.2]
[1765896156593,43.8034754,128.63,128.59,0.89]
[1765896156916,24.36788495,128.63,128.6,0.69]
[1765896157103,28.91432484,128.64,128.59,16.0700226]
[1765896157308,8.09341005,128.66,128.62,0.69]
[1765896157526,15.86664332,128.65,128.61,0.69]
[1765896157834,8.5,128.64,128.61,0.69]
[1765896158032,16.59341005,128.64,128.59,0.89]
[1765896158228,8.09341005,128.63,128.59,0.89]
[1765896158601,8.09341005,128.63,128.59,8.66661326]
[1765896158796,8.09341005,128.62,128.59,0.2]
[1765896159038,8.09341005,128.6,128.59,0.2]
[1765896159402,8.25341005,128.6,128.59,0.2]
[1765896159608,16.02945981,128.6,128.59,0.2]
[1765896159808,24.83940473,128.6,128.59,0.2]
[1765896160124,7.77604976,128.6,128.59,0.2]
[1765896160326,24.36945981,128.6,128.59,0.2]
[1765896160715,7.77604976,128.6,128.59,0.2]
[1765896160933,24.36945981,128.6,128.59,0.2]
[1765896161614,16.27604976,128.6,128.59,0.2]
[1765896161814,24.36945981,128.6,128.59,0.2]
[1765896163048,8.5,128.6,128.59,0.2]
[1765896163343,16.59341005,128.6,128.59,0.2]
[1765896163709,16.27604976,128.6,128.59,0.2]
[1765896164021,8.5,128.63,128.6,0.69]
[1765896164210,8.09341005,128.65,128.6,8.09341005]
[1765896164428,8.09341005,128.66,128.62,0.69]
[1765896164628,8.5,128.65,128.62,0.69]
[1765896165827,16.2731556,128.65,128.62,0.69]
[1765896166754,8.09341005,128.64,128.6,0.69]
[1765896167070,8.09341005,128.63,128.59,0.89]
[1765896167358,16.59341005,128.62,128.59,0.89]
[1765896167563,16.59341005,128.62,128.59,0.2]
[1765896167740,8.09341005,128.61,128.59,0.89]
[1765896167944,15.86909166,128.61,128.59,0.2]
[1765896168130,7.77568161,128.61,128.59,0.2]
[1765896168464,8.09341005,128.6,128.59,0.2]
[1765896168671,8.5,128.62,128.59,0.2]
[1765896168824,15.8685222,128.62,128.59,0.89]
[1765896169029,8.5,128.61,128.59,0.89]
[1765896169227,16.59341005,128.61,128.59,0.2]
[1765896169447,8.09341005,128.6,128.59,0.2]
[1765896169829,15.86945981,128.6,128.59,0.2]
[1765896170691,7.77604976,128.6,128.59,0.2]
[1765896170964,16.27568228,128.61,128.59,0.89]
[1765896171167,15.86909233,128.61,128.59,0.2]
[1765896171454,24.36909233,128.61,128.59,0.2]
[1765896171772,8.09341005,128.6,128.59,0.2]
[1765896171976,43.80770519,128.61,128.59,0.2]
[1765896172263,8.09341005,128.6,128.59,0.2]
[1765896172862,7.77512308,128.62,128.6,0.69]
[1765896173052,8.5,128.61,128.59,0.2]
[1765896173373,8.5,128.61,128.59,0.89]
[1765896173883,47.67698594,128.65,128.59,0.89]
[1765896173884,35.29972509,128.65,128.6,0.69]
[1765896174036,7.77302759,128.65,128.61,0.69]
[1765896174243,16.27302759,128.65,128.61,0.69]
[1765896174441,8.5,128.65,128.61,0.69]
[1765896174659,8.5,128.67,128.64,0.69]
[1765896175637,24.36562384,128.67,128.63,7.77413845]
[1765896175841,7.77061154,128.69,128.65,0.69]
[1765896176042,8.09341005,128.69,128.65,0.69]
[1765896176265,7.77024654,128.7,128.67,0.69]
[1765896176266,8.5,128.7,128.67,0.69]
[1765896176482,8.5,128.72,128.67,8.09341005]
[1765896176642,16.59341005,128.72,128.68,0.69]
[1765896177355,8.5,128.72,128.68,0.69]
[1765896177543,7.76776971,128.74,128.69,7.77032811]
[1765896177747,24.36117976,128.74,128.7,0.69]
[1765896177988,16.26776971,128.74,128.7,0.69]
[1765896178471,7.76578395,128.77,128.72,8.80994492]
[1765896178765,0.1,128.78,128.74,0.69]
[1765896178970,0.1,128.78,128.74,8.78341005]
[1765896179172,0.1,128.78,128.75,0.69]
[1765896179355,15.95893346,128.78,128.75,0.69]
[1765896179760,0.1,128.78,128.76,0.69]
[1765896180275,19.40467061,128.84,128.77,8.09341005]
[1765896180445,8.09341005,128.82,128.78,0.69]
[1765896180650,16.26216719,128.83,128.78,0.69]
[1765896180651,8.09341005,128.81,128.78,0.69]
[1765896180855,7.76036008,128.86,128.8,8.09341005]
[1765896181054,8.09341005,128.85,128.81,0.69]
[1765896181263,8.09341005,128.84,128.78,21.85703612]
[1765896181473,8.09341005,128.81,128.79,0.69]
[1765896181781,15.8561798,128.82,128.77,0.69]
[1765896182083,27.90613578,128.83,128.79,0.69]
[1765896182084,8.5,128.83,128.79,0.69]
[1765896182279,16.26228843,128.83,128.79,0.69]
[1765896182977,8.5,128.83,128.78,0.69]
[1765896183207,8.5,128.83,128.8,0.69]
[1765896183583,16.26220926,128.83,128.8,0.69]
[1765896183788,8.09341005,128.82,128.77,0.72]
[1765896184155,8.09341005,128.81,128.77,0.72]
[1765896184567,8.09341005,128.82,128.78,0.72]
[1765896184886,8.09341005,128.81,128.78,0.72]
[1765896185085,16.26220926,128.83,128.79,7.76441451]
[1765896185256,8.5,128.83,128.8,0.72]
[1765896185457,16.26222316,128.83,128.8,0.72]
[1765896185859,8.5,128.83,128.81,0.72]
[1765896186061,7.76173534,128.84,128.81,0.72]
[1765896186265,8.02173534,128.84,128.77,0.72]
[1765896186574,8.09341005,128.81,128.76,0.72]
[1765896186890,8.09341005,128.8,128.75,0.72]
[1765896187080,8.09341005,128.78,128.73,8.09341005]
[1765896187278,8.09341005,128.77,128.73,0.72]
[1765896187480,8.5,128.77,128.73,0.72]
[1765896187664,16.59341005,128.77,128.73,8.48818869]
[1765896187982,16.59341005,128.77,128.73,0.72]
[1765896188185,16.59341005,128.78,128.73,0.72]
[1765896188387,8.5,128.79,128.76,0.72]
[1765896188567,8.09341005,128.81,128.76,0.72]
[1765896188762,8.09341005,128.8,128.76,0.72]
[1765896188981,8.09341005,128.79,128.75,0.72]
[1765896189580,8.09341005,128.79,128.76,0.72]
[1765896189784,8.09341005,128.78,128.75,0.72]
[1765896190192,16.59341005,128.79,128.75,0.72]
[1765896190575,8.09341005,128.78,128.74,0.72]
[1765896190760,8.09341005,128.77,128.74,0.72]
[1765896190965,8.09341005,128.77,128.73,0.72]
[1765896191290,8.5,128.79,128.75,0.72]
[1765896191492,15.85859097,128.78,128.75,0.72]
[1765896191691,15.85859097,128.78,128.74,0.72]
[1765896191865,15.85859097,128.78,128.73,8.48800687]
[1765896192065,7.76518092,128.78,128.7,41.28132384]
[1765896192270,7.76518092,128.78,128.74,0.72]
[1765896192571,15.85859097,128.78,128.74,0.72]
[1765896193291,24.35822158,128.79,128.74,0.72]
[1765896193484,24.35822158,128.79,128.75,0.72]
[1765896194392,15.85822158,128.79,128.75,0.72]
[1765896194562,15.85822158,128.79,128.75,8.48689461]
[1765896194762,102.76,128.81,128.76,0.72]
[1765896194763,7.76350613,128.81,128.76,0.72]
[1765896195070,15.85691618,128.81,128.77,0.72]
[1765896195580,15.85798804,128.79,128.75,0.72]
[1765896195776,8.09341005,128.76,128.72,0.72]
[1765896196790,8.5,128.78,128.73,0.72]
[1765896197089,16.59341005,128.78,128.73,8.09341005]
[1765896197295,8.09341005,128.78,128.74,0.72]
[1765896197481,8.09341005,128.8,128.76,0.72]
[1765896197675,8.09341005,128.78,128.74,0.72]
[1765896197878,16.59341005,128.78,128.74,0.72]
[1765896198574,8.09341005,128.77,128.73,0.72]
[1765896198892,8.09341005,128.77,128.71,16.58261502]
[1765896199079,8.76,128.78,128.71,16.58261502]
[1765896199080,8.09341005,128.76,128.72,0.72]
[1765896199664,7.76699029,128.75,128.72,0.72]
[1765896199865,8.09341005,128.74,128.69,7.77026842]
[1765896200199,8.09341005,128.73,128.7,0.72]
[1765896200383,8.09341005,128.74,128.7,0.72]
[1765896200886,8.09341005,128.72,128.68,0.72]
[1765896201088,8.08610082,128.71,128.67,0.72]
[1765896201269,8.5,128.72,128.67,7.77177421]
[1765896201466,8.08610082,128.71,128.67,0.72]
[1765896201694,7.77000777,128.7,128.66,8.08610082]
[1765896201915,8.5,128.69,128.66,0.72]
[1765896202123,8.5,128.69,128.65,0.72]
[1765896202124,16.58610082,128.69,128.65,0.72]
[1765896202286,8.5,128.69,128.63,16.58010357]
[1765896202485,8.08610082,128.66,128.63,0.72]
[1765896202795,8.08610082,128.68,128.64,0.72]
[1765896203098,8.08610082,128.68,128.64,7.77345448]
[1765896203306,8.08610082,128.67,128.63,7.77396694]
[1765896203507,8.08610082,128.67,128.63,8.49396694]
[1765896203686,8.08610082,128.67,128.64,0.72]
[1765896203883,15.85802541,128.67,128.64,0.72]
[1765896204101,15.85802541,128.67,128.64,8.49350761]
[1765896204302,15.85799768,128.67,128.63,7.77399207]
[1765896204498,24.35799768,128.67,128.63,8.49399207]
[1765896204679,15.85799768,128.67,128.64,0.72]
[1765896204883,24.35799768,128.67,128.64,0.72]
[1765896205084,7.77189686,128.67,128.64,0.72]
[1765896205302,16.27189686,128.67,128.64,0.72]
[1765896206316,15.85799768,128.67,128.63,8.4938887]
[1765896206612,24.35799768,128.67,128.63,7.7738887]
[1765896206790,8.08610082,128.69,128.64,0.72]
[1765896206990,8.5,128.68,128.65,0.72]
[1765896207303,8.5,128.68,128.62,0.2]
[1765896207504,8.08610082,128.66,128.63,0.72]
[1765896207802,102.5,128.67,128.64,0.72]
[1765896208002,8.5,128.69,128.64,8.08610082]
[1765896208003,16.58610082,128.69,128.64,8.08610082]
[1765896208311,8.5,128.69,128.66,8.49242344]
[1765896208626,8.5,128.69,128.67,0.72]
[1765896208811,118.35564422,128.71,128.67,0.72]
[1765896209112,16.58610082,128.7,128.63,0.72]
[1765896209299,16.58610082,128.7,128.66,0.72]
[1765896209497,8.5,128.7,128.66,0.72]
[1765896209711,8.5,128.7,128.67,0.72]
[1765896210220,8.5,128.7,128.66,8.08610082]
[1765896210221,7.77061154,128.69,128.66,0.72]
[1765896210415,16.58610082,128.7,128.67,0.72]
[1765896210722,24.35627845,128.7,128.67,0.72]
[1765896211292,8.5,128.7,128.67,0.72]
[1765896211700,16.27009834,128.7,128.66,7.77237665]
[1765896211912,29.40912238,128.7,128.67,0.72]
[1765896212126,16.27009834,128.7,128.67,0.72]
[1765896212599,29.40912238,128.7,128.66,0.72]
[1765896212791,13.13902404,128.68,128.65,0.72]
[1765896212997,13.39902404,128.66,128.62,0.2]
[1765896213211,8.5,128.67,128.63,0.72]
[1765896213396,21.63902404,128.67,128.63,0.72]
[1765896213603,13.13902404,128.67,128.63,0.72]
[1765896213807,21.63902404,128.67,128.63,0.72]
[1765896214325,16.27233967,128.67,128.63,8.4939714]
[1765896214499,29.41136371,128.67,128.63,8.4939714]
[1765896214696,29.41136371,128.67,128.63,0.72]
[1765896214902,8.5,128.67,128.64,0.69]
[1765896215116,29.41098157,128.67,128.63,8.46401668]
[1765896215295,29.41098157,128.67,128.64,0.69]
[1765896215491,8.5,128.67,128.64,0.69]
[1765896215818,29.41090714,128.67,128.64,0.69]
[1765896216018,13.13902404,128.66,128.62,7.97454654]
[1765896216215,29.41090714,128.67,128.63,8.46411919]
[1765896216420,29.41090714,128.67,128.63,0.69]
[1765896216929,29.67090714,128.67,128.62,8.66454975]
[1765896217229,13.13902404,128.65,128.62,8.66478853]
[1765896217526,13.13902404,128.63,128.62,0.2]
[1765896217898,115.5470912,128.66,128.62,0.2]
[1765896218103,21.63902404,128.65,128.62,0.2]
[1765896218405,20.91265588,128.64,128.62,0.2]
[1765896219531,13.13902404,128.64,128.62,0.2]
[1765896219700,20.91230327,128.65,128.62,0.2]
[1765896219895,7.77327923,128.65,128.62,0.89]
[1765896220101,20.91230327,128.65,128.62,0.89]
[1765896221297,20.81979417,128.66,128.62,0.89]
[1765896221502,13.13902404,128.65,128.62,8.6648281]
[1765896221808,33.95881821,128.66,128.62,0.89]
[1765896222112,13.13902404,128.65,128.62,0.89]
[1765896222321,53.38987681,128.66,128.62,0.89]
[1765896222628,13.13902404,128.65,128.62,0.89]
[1765896222818,13.13902404,128.64,128.62,0.2]
[1765896223231,13.13902404,128.63,128.62,0.2]
[1765896223602,13.39902404,128.63,128.62,0.2]
[1765896224003,13.13902404,128.63,128.62,0.2]
[1765896224611,20.91326022,128.63,128.62,0.2]
[1765896225337,7.77423618,128.63,128.62,0.2]
[1765896225626,20.91326022,128.63,128.62,0.2]
[1765896226910,7.77423618,128.63,128.62,0.2]
[1765896227121,20.91326022,128.63,128.62,0.2]
[1765896227527,7.77423618,128.63,128.62,0.2]
[1765896227711,20.91326022,128.63,128.62,0.2]
[1765896228912,29.98320514,128.63,128.62,0.2]
[1765896229721,29.8912723,128.63,128.62,0.2]
[1765896229930,43.03029634,128.63,128.62,0.2]
[1765896230116,26.44611524,128.6,128.59,0.2]
[1765896230707,43.03210992,128.6,128.59,0.2]
[1765896232129,0.26,128.58,128.54,0.2]
[1765896232334,13.13902404,128.55,128.54,0.2]
[1765896232711,20.91809833,128.55,128.54,0.2]
[1765896232913,7.77907429,128.55,128.54,0.2]
[1765896233107,7.77875841,128.56,128.54,0.2]
[1765896233334,13.13902404,128.55,128.54,0.2]
[1765896233514,7.77875841,128.56,128.54,0.86]
[1765896233706,13.0470912,128.6,128.55,0.66]
[1765896233909,20.91567852,128.59,128.55,0.66]
[1765896234710,13.0470912,128.6,128.55,0.66]
[1765896234918,13.13902404,128.58,128.55,0.66]
[1765896235107,13.13902404,128.56,128.54,0.2]
[1765896235333,13.13902404,128.55,128.54,0.2]
[1765896236048,13.3070912,128.53,128.52,0.2]
[1765896236259,13.0470912,128.53,128.52,0.2]
[1765896236544,13.13902404,128.53,128.52,0.2]
[1765896236951,20.91875522,128.54,128.52,0.86]
[1765896237308,13.13902404,128.53,128.52,0.2]